Cogmind - Beta 13 @@@ ROGUE MODE // 2024.06.02 @ 12:53:53 Player: Blade Result: Destroyed by G-47 Trooper with Particle Gun Performance ------------- Evolutions (2) 1000 Regions Visited (4) 800 Robots Destroyed (33) 165 Value Destroyed (923) 923 Prototype IDs (0) 0 Alien Tech Used (0) 0 Bonus (-38) -38 TOTAL SCORE: 2850 Bonus ------- High Alert Combat Kills 62 Follower Combat Kills 190 Friendly Fire -290 Cogmind --------- Core Integrity 0/550 Matter 256/300 Energy 100/100 System Corruption 7% Temperature Warm (110) Movement Core (1400) Ox27 Location -8/Materials Parts ------- > --- POWER (1) -------- (None) > --- PROPULSION (2) --- (None) > --- UTILITY (6) ------ Huge Storage Unit Improved Power Shielding > --- WEAPON (2) ------- (None) > --- INVENTORY (25) --- Ion Engine Light Treads Light Treads Heat Sink Power Shielding Improved Power Shielding Improved Power Shielding Improved Power Shielding Peak State ------------ > --- POWER ------------ Light Ion Engine > --- PROPULSION ------- Compact Wheel Compact Wheel > --- UTILITY ---------- Huge Storage Unit Improved Power Shielding Hardened Medium Armor Plating Hardened Medium Armor Plating Hardened Medium Armor Plating Hardened Medium Armor Plating > --- WEAPON ----------- Light Assault Rifle Grenade Launcher > --- INVENTORY -------- Ion Engine Light Treads Light Treads Aluminum Leg Aluminum Leg Carbon-fiber Leg Carbon-fiber Leg Carbon-fiber Leg Carbon-fiber Leg Heat Sink Power Shielding Improved Power Shielding Improved Power Shielding Improved Power Shielding Small Laser Assault Rifle [Rating: 24] Favorites ----------- Power Light Ion Engine Engine Light Ion Engine Propulsion Compact Wheel Leg Aluminum Leg Wheel Compact Wheel Utility Hardened Medium Armor Plating Storage Huge Storage Unit Protection Hardened Medium Armor Plating Weapon Light Assault Rifle Energy Gun Small Laser Ballistic Gun Light Assault Rifle Ballistic Cannon Assault Cannon Launcher Grenade Launcher Build | -11 -10 -9 -9 -8 ------- Run | Yrd Mat Mat Sto Mat Slots Evolved 4 | . . 2 . 2 Power . | . . . . . Propulsion . | . . . . . Utility 4 | . . 2 . 2 Weapon . | . . . . . Parts Attached 24 | . 5 2 3 14 Power . | . . . . . Engine . | . . . . . Core . | . . . . . Reactor . | . . . . . Propulsion 12 | . 3 . 2 7 Treads . | . . . . . Leg 7 | . . . . 7 Wheel 5 | . 3 . 2 . Hover . | . . . . . Flight . | . . . . . Utility 8 | . 2 2 . 4 Device . | . . . . . Storage 1 | . 1 . . . Processor . | . . . . . Hackware . | . . . . . Protection 7 | . 1 2 . 4 Artifact . | . . . . . Weapon 4 | . . . 1 3 Energy Gun 1 | . . . . 1 Energy Cannon . | . . . . . Ballistic Gun 1 | . . . . 1 Ballistic Cannon 1 | . . . . 1 Launcher 1 | . . . 1 . Special Weapon . | . . . . . Impact Weapon . | . . . . . Slashing Weapon . | . . . . . Piercing Weapon . | . . . . . Special Melee Weapon . | . . . . . Unidentified Prototypes . | . . . . . Parts Lost 19 | . . . 2 17 Power 1 | . . . . 1 Propulsion 9 | . . . 1 8 Utility 5 | . . . 1 4 Weapon 4 | . . . . 4 Highest Loss Streak 10 | . . . 1 10 To Critical Strikes . | . . . . . Average Slot Usage (%) 86 | . 97 81 91 67 Engine 9 | . 14 11 11 1 Leg 5 | . 19 . . 8 Wheel 16 | . 8 22 22 7 Storage 11 | . 14 11 11 9 Protection 21 | . 11 15 25 30 Energy Gun 6 | . 14 11 2 1 Ballistic Gun 10 | . 14 11 11 5 Launcher 3 | . . . 8 3 Naked Turns . | . . . . . Heaviest Build 121 | 10 88 104 104 121 Greatest Support 32 | 20 26 26 32 32 Greatest Overweight (x) 7 | . 5 3 3 7 Average Overweight (x) 2 | . . 3 3 3 Largest Inventory Capacity 25 | 8 25 25 25 25 Average Capacity 22 | 8 13 25 25 25 Most Carried 20 | 6 9 19 20 18 Average Carried 14 | 6 7 10 19 13 Final Capacity 25 | 8 25 25 25 25 Final Carried 19 | 6 9 19 19 8 Class Distribution -------------------- 83% | Mutant 16% | Commander-Mutant Dominant Class ---------------- Mutant | -10/Materials Mutant | -9/Materials Mutant | -9/Storage Mutant | -8/Materials Resources | -11 -10 -9 -9 -8 ----------- Run | Yrd Mat Mat Sto Mat Matter Collected 586 | 200 13 53 204 116 Remotely . | . . . . . Salvage Created 1043 | . 89 110 545 299 Parts 68 | . 8 7 34 19 Haulers Intercepted 2 | . 1 . 1 . Recyclers Shooed 2 | . 1 . 1 . Parts Field Recycled . | . . . . . Retrieved Matter . | . . . . . Parts Self-Destructed . | . . . . . Prevented . | . . . . . Kills | -11 -10 -9 -9 -8 ------- Run | Yrd Mat Mat Sto Mat Combat Hostiles Destroyed 22 | . 1 2 11 8 Guns 9 | . 1 2 3 3 AOE 13 | . . . 8 5 Classes Destroyed 13 | . 2 1 6 4 Worker 2 | . . . 2 . Builder 1 | . . . 1 . Tunneler 1 | . . . . 1 Hauler 2 | . 1 . 1 . Recycler 1 | . . . 1 . Mechanic 1 | . . . 1 . Watcher 1 | . . . 1 . Swarmer 3 | . . . 1 2 Grunt 13 | . 1 . 7 5 Brawler 1 | . . . . 1 Sentry 5 | . . 2 3 . Specialist 1 | . . . . 1 Heavy 1 | . . . . 1 Best Kill Streak 9 | . 1 1 9 7 Combat Bots Only 6 | . 1 1 5 6 Max Kills in Single Turn 3 | . 1 1 3 2 Gunslinging . | . . . . . Exploded 2 | . . . 2 1 Melee . | . . . . . Uniques/NPCs Destroyed . | . . . . . Combat | -11 -10 -9 -9 -8 -------- Run | Yrd Mat Mat Sto Mat Hostile Shots Fired 252 | . 6 21 53 172 Missed 67 | . 4 4 23 36 Damage Taken 3406 | . 22 253 459 2672 Core 663 | . . 31 74 558 Absorbed by Shields . | . . . . . Redirected to Shielding 7 | . . . . 7 Core Remaining (%) 91 | 100 100 . 73 . Volleys Fired 79 | . 9 10 30 30 Largest 2 | . 2 2 2 2 Hottest 64 | . 60 60 60 64 Shots Fired 134 | . 18 20 53 43 Gun 105 | . 18 20 37 30 Cannon 2 | . . . . 2 Launcher 27 | . . . 16 11 Special . | . . . . . Kinetic 65 | . 9 10 30 16 Thermal 42 | . 9 10 7 16 Explosive 27 | . . . 16 11 Electromagnetic . | . . . . . Robot Hit Streak 25 | . 8 21 25 10 Robot Miss Streak 3 | . 1 . 3 3 Penetration Max . | . . . . . Secondary Targets . | . . . . . Shots Hit Robots 96 | . 13 19 38 26 Core Hits 73 | . 5 4 36 28 Critical Kills 1 | . . . . 1 Critical Parts Destroyed . | . . . . . Critical Strikes 1 | . . . . 1 Destroy 1 | . . . . 1 Melee Attacks . | . . . . . Impact . | . . . . . Slashing . | . . . . . Piercing . | . . . . . Sneak Attacks . | . . . . . Combat Hostiles . | . . . . . Follow-up Attacks . | . . . . . Damage Inflicted 2378 | . 130 191 1193 864 Guns 731 | . 121 191 225 194 Cannons 52 | . . . . 52 Explosions 1489 | . . . 912 577 Melee . | . . . . . Ramming 106 | . 9 . 56 41 Kinetic 401 | . 35 79 173 114 Thermal 382 | . 86 112 52 132 Explosive 1489 | . . . 912 577 Electromagnetic . | . . . . . Impact . | . . . . . Slashing . | . . . . . Piercing . | . . . . . Highest Corruption 7 | . . . . 7 Average Corruption 7 | . . . . 7 Corruption Purged . | . . . . . Corruption Blocked . | . . . . . Effects 6 | . . . . 6 Message Errors 2 | . . . . 2 Heat Flow Errors 2 | . . . . 2 Parts Rejected 1 | . . . . 1 Data Loss (minor) 1 | . . . . 1 Overload Shots . | . . . . . Overflow Damage 29 | . . . 21 8 Projectiles . | . . . . . Explosions 26 | . . . 18 8 Melee 3 | . . . 3 . Knockbacks . | . . . . . Impact . | . . . . . Kinetic . | . . . . . Secondary . | . . . . . Self-Inflicted Damage 82 | . . . 55 27 Shots 3 | . . . 1 2 Rammed 3 | . . . 3 . Targets Rammed 18 | . 2 . 3 13 Kicked 15 | . 2 . . 13 Crushed . | . . . . . Highest Temperature 257 | . 100 94 132 257 Average Temperature 62 | . 38 43 49 87 Received Heat Transfer 1011 | . 12 90 96 813 Siege Activations . | . . . . . Robots Corrupted . | . . . . . Combat Hostiles . | . . . . . Parts Fried . | . . . . . Impact Corruptions 1 | . . . 1 . Robots Melted . | . . . . . Combat Hostiles . | . . . . . Parts Melted 1 | . . 1 . . Heat Transferred 875 | . 200 250 125 300 Parts Sabotaged . | . . . . . Parts Stolen . | . . . . . Parts Stripped . | . . . . . Power Chain Reactions . | . . . . . Alert | -11 -10 -9 -9 -8 ------- Run | Yrd Mat Mat Sto Mat Peak Influence 563 | . 27 101 563 458 Initial 160 | . . 11 42 160 Average 199 | . 12 65 275 361 Maximum Alert Level 2 | . . . 2 2 Low Security (%) 54 | 100 100 100 30 16 Level 1 29 | . . . 54 35 Level 2 15 | . . . 15 48 Level 3 . | . . . . . Level 4 . | . . . . . Level 5 . | . . . . . High Security . | . . . . . Max Security . | . . . . . Squads Dispatched 3 | . . . 1 2 Investigation . | . . . . . Extermination . | . . . . . Reinforcement 3 | . . . 1 2 Assault . | . . . . . Garrison . | . . . . . Intercept . | . . . . . Searches Triggered . | . . . . . Construction Impeded 1 | . . . 1 . Haulers Reinforced . | . . . . . Active Scanning Responses . | . . . . . Cargo Convoy Interrupts . | . . . . . Stealth | -11 -10 -9 -9 -8 --------- Run | Yrd Mat Mat Sto Mat Distress Signals 6 | . . . 4 2 Communications Jammed . | . . . . . Distress Signals . | . . . . . Times Spotted 47 | . 3 2 22 20 Peak Tracking Total 8 | . 3 1 5 8 Tactical Retreats . | . . . . . Traps | -11 -10 -9 -9 -8 ------- Run | Yrd Mat Mat Sto Mat Traps Triggered 2 | . 1 . 1 . Indirectly . | . . . . . Trap Hack Attempts . | . . . . . Triggered . | . . . . . Disarmed . | . . . . . Reprogrammed . | . . . . . Reused . | . . . . . Traps Extracted . | . . . . . Installed . | . . . . . Triggered . | . . . . . Machines | -11 -10 -9 -9 -8 ---------- Run | Yrd Mat Mat Sto Mat Machines Disabled 3 | . . . 3 . Max in Single Turn 2 | . . . 2 . Machines Repaired . | . . . . . Machines Dismantled . | . . . . . Machines Sabotaged . | . . . . . Overloaded Fab Kills . | . . . . . Hacking | -11 -10 -9 -9 -8 --------- Run | Yrd Mat Mat Sto Mat Machines Accessed 3 | . . . 3 . Terminals 3 | . . . 3 . Fabricators . | . . . . . Repair Stations . | . . . . . Recycling Units . | . . . . . Scanalyzers . | . . . . . Garrison Access . | . . . . . Total Hacks 8 | . . . 8 . Successful 2 | . . . 2 . Failed 6 | . . . 6 . Catastrophic 1 | . . . 1 . Database Lockouts . | . . . . . Manual 6 | . . . 6 . Terminals 8 | . . . 8 . Fabricators . | . . . . . Repair Stations . | . . . . . Recycling Units . | . . . . . Scanalyzers . | . . . . . Garrison Access . | . . . . . Terminal Hacks 2 | . . . 2 . Level Access Points 1 | . . . 1 . Unreport Threat 1 | . . . 1 . Fabricator Hacks . | . . . . . Repair Station Hacks . | . . . . . Recycling Unit Hacks . | . . . . . Scanalyzer . | . . . . . Garrison Access Hacks . | . . . . . Unauthorized Hacks . | . . . . . Terminals . | . . . . . Fabricators . | . . . . . Repair Stations . | . . . . . Recycling Units . | . . . . . Scanalyzers . | . . . . . Garrison Access . | . . . . . Data Cores Recovered . | . . . . . Used . | . . . . . Hacking Detections 3 | . . . 3 . Full Trace Events . | . . . . . Feedback Events . | . . . . . Feedback Blocked . | . . . . . Robot Schematics Acquired . | . . . . . Robots Built . | . . . . . Authchips . | . . . . . Time . | . . . . . Total Robot Build Rating . | . . . . . Part Schematics Acquired . | . . . . . Parts Built . | . . . . . Authchips . | . . . . . Time . | . . . . . Total Part Build Rating . | . . . . . Parts Repaired . | . . . . . Time . | . . . . . Parts Recycled . | . . . . . Recycled Matter . | . . . . . Retrieved Matter . | . . . . . Retrieved Components . | . . . . . Parts Scanalyzed . | . . . . . Part Schematics Acquired . | . . . . . Parts Damaged . | . . . . . Bothacking | -11 -10 -9 -9 -8 ------------ Run | Yrd Mat Mat Sto Mat Used RIF Installer . | . . . . . Robots Hacked . | . . . . . Non-combat . | . . . . . Combat . | . . . . . Robot Hacks Applied . | . . . . . Relay Couplers Released . | . . . . . Fabnet Peak Effective % . | . . . . . Robots Rewired 1 | . . . 1 . Allies Hacked . | . . . . . Hacks Repelled . | . . . . . Allies | -11 -10 -9 -9 -8 -------- Run | Yrd Mat Mat Sto Mat Total Allies 10 | . . . 10 . Largest Group 10 | . . . 10 3 Highest-Rated Group 88 | . . . 88 32 Highest-Rated Ally 16 | . . . 16 16 Total Orders . | . . . . . Ally Attacks 75 | . . . 53 22 Total Damage 650 | . . . 451 199 Kills 14 | . . . 9 5 Allies Corrupted . | . . . . . Allies Melted . | . . . . . Intel | -11 -10 -9 -9 -8 ------- Run | Yrd Mat Mat Sto Mat Robot Analysis Total . | . . . . . Derelict Logs Recovered . | . . . . . Drone Launches . | . . . . . Drone Recoveries . | . . . . . Exploration | -11 -10 -9 -9 -8 ------------- Run | Yrd Mat Mat Sto Mat Turns Passed 1164 | 4 255 190 484 231 Spaces Moved 609 | 4 174 83 294 54 Core . | . . . . . Treads . | . . . . . Legs 138 | 4 121 . . 13 Wheels 471 | . 53 83 294 41 Hover . | . . . . . Flight . | . . . . . Fastest Speed 120 | 120 120 135 135 145 Average Speed 137 | 120 125 135 135 195 Slowest Speed 330 | 120 175 135 145 330 Overloaded Moves . | . . . . . Propulsion Burnouts . | . . . . . Robots Hopped . | . . . . . Cave-ins Triggered 1 | . . . . 1 Exploration Rate (%) 18 | 2 24 6 54 6 Regions Visited 4 Branch Regions 1 Pre-discovered Areas . | . . . . . Known Exits Taken 1 | . . . 1 . Unknown Exits Taken 3 | 1 1 1 . . Scrap Searched . | . . . . . Spaces Dug . | . . . . . Terrain Destroyed 159 | . . . 101 58 Melee . | . . . . . Projectile . | . . . . . AOE 159 | . . . 101 58 Terrain Rammed . | . . . . . Walls Destroyed . | . . . . . Machines Disabled . | . . . . . Actions | -11 -10 -9 -9 -8 --------- Run | Yrd Mat Mat Sto Mat Total 781 | 3 193 142 331 112 Wait 39 | . . 38 1 . Move 605 | 3 173 82 293 54 Hop . | . . . . . Pick Up 13 | . 3 10 . . Fast Attach 6 | . 2 2 . 2 Attach 12 | . . . 1 11 Detach . | . . . . . Swap 6 | . 3 . 2 1 Drop 2 | . 1 . . 1 Fire 79 | . 9 10 30 30 Melee . | . . . . . Ram 3 | . . . 3 . Kick 15 | . 2 . . 13 Crush . | . . . . . Escape Stasis . | . . . . . Rewire 1 | . . . 1 . Trap . | . . . . . Miscellaneous . | . . . . . Route ------- -11/Scrapyard -10/Materials -9/Materials (discovered 2 exits: *Sto x2) -9/Storage -8/Materials History --------- Turn | Location | Event 1 | -11/Scrapyard | Discovered new exit (range 1) 5 | -11/Scrapyard | Entered Materials 222 | -10/Materials | Discovered new exit (range 13) 260 | -10/Materials | Entered another Materials area 260 | -9/Materials | Evolved 2 slots: Utility x2 260 | -9/Materials | Discovered new exit (range 14) 275 | -9/Materials | Discovered new exit (range 15) 316 | -9/Materials | Build established: Mutant 450 | -9/Materials | Entered Storage 513 | -9/Storage | Identified exit to Materials 672 | -9/Storage | Assisted by bots powering up and referring to "LRC-V3" 898 | -9/Storage | Lost 7 allies 934 | -9/Storage | Entered Materials 934 | -8/Materials | Accompanied by 3 allies 934 | -8/Materials | Evolved 2 slots: Utility x2 1026 | -8/Materials | Lost 3 allies 1041 | -8/Materials | Crushed by falling debris 1076 | -8/Materials | Lost 6 parts (2n2u2w) 1079 | -8/Materials | Core integrity fell below 50% 1158 | -8/Materials | Core integrity fell below 20% 1165 | -8/Materials | Destroyed by G-47 Trooper with Particle Gun Last Messages --------------- 01125_ Kicked G-47 Trooper. 01130_ Kicked G-47 Trooper out of the way. 01135_ Kicked G-47 Trooper. 01138_ Kicked G-47 Trooper out of the way. 01140_ Kicked G-47 Trooper. 01144_ 6HZ5%C/F,13H#I JU0 F %QQ%HNB|GUQ5XU3CW 01145_ Kicked G-47 Trooper. 01146_ Carbon-fiber Leg destroyed. 01150_ Kicked G-47 Trooper out of the way. 01153_ Penetrated by Slug. 01153_ G-47 Trooper destroyed. 01154_ Kicked X-62 Marksman. 01155_ Critical hit (Burn: +37). 01158_ Kicked X-62 Marksman out of the way. 01159_ System corrupted: Heat flow error (+215). 01159_ Penetrated by Slug. 01159_ Aluminum Leg destroyed. 01162_ Penetrated by Slug. 01162_ Kicked X-62 Marksman. 01165_ Aluminum Leg destroyed. Map ----- +----------------------------------------------------+ | | | | | | | | | | | | | | | | | | | | | | | | | | | | | | | ?????????????????????????????????????????????????? | | ?????????????????????????????????????????????????? | | ????????????????????????##########???????????????? | | ????????????????????????# ???????????????? | | ????????????????????????# ???????????????? | | ????????????????????##### """ """ #??????????????? | | ????????????????????# # """ """ #??????????????? | | ????????????????????# # """ """ #??????????????? | | ????????????????????# !#! #??????????????? | | ????????????????????# *=Yg% #??????????????? | | ????????????????????# !#@x #??????????????? | | ????????????????????# #############????""??????? | | ???????????????????## ########### ##? ????????? | | ???????????????????# ##"# # # ###+###???? | | ???????????????????# % ??? | | ???????????????????# ![ ??? | | ???????????????????# = * = ??? | | ???????????????????# # # # #######???? | | ???????????????????###### #[ % #?????????? | | ???????????????????????# = * #?????????? | | ???????????????????????### %% # #?????????? | | ????????????????????????# = # #?????????? | | ????????????????????????# ! = # #?????????? | | ????????????????????????# % # #?????????? | | ????????????????????????#######/### #????????? | | ??????????????????????????## ???????? | | ???????????????????????????# ? ???????? | | ???????????????????????????# ##???????? | | ???????????????????????????# #### #????????? | | ???????????????????????????# #???######????????? | | ???????????????????????????# #?????????????????? | | ???????????????????????????# +?????????????????? | | ???????????????????????????? #?????????????????? | | ???????????????????????????? #?????????????????? | | ???????????????????????????? ??????????????????? | +----------------------------------------------------+ Best States ------------- Heat Dissipation 31 Energy Generation 10 Energy Capacity 125 Matter Stores 300 Matter Capacity 300 Sight Range 16 Terrain Scan Density 10 Armor Coverage 900 Power Shielding 66 Evasion (%) 55 Item Schematics ----------------- None Robot Schematics ------------------ None Fabricated ------------ Nothing Alien Tech Used ----------------- None Achievements -------------- None Challenges ------------ None Game ------ Seed ForceBombCoupler Manual? 0 Play Time 00:13:02 Cumulative 76.5 hours Start 2024.06.02 @ 12:44:24 End 2024.06.02 @ 12:53:53 Sessions 1 Manual Loads 0 Difficulty Rogue Special Mode None Game No. 109 Rogue 25 Adventurer 79 Explorer 5 Win Type - Total 2 Types 2/0/0/0/0/0/0/0/0 Lore% 40 Gallery% 51 Achievement% 39 Wizard Run 0 Options --------- Layout 1 ASCII 0 Keyboard 0 Movement Arrows Keybinds 0 Fullscreen 2 Font 24/Smallcaps Map View 50x35 Zoom Use 0% Tactical HUD 1 Map Filters NONE Filters NONE Steam 1 RUN: 5325c917-08bc-479b-93c0-8ddce679f229